bitfinex/quotes_ETHUSD_20240828
["timestamp","ask_amount","ask_price","bid_price","bid_amount"]
[1724832845227,13.64845,2458.9,2458.4,4.6176]
[1724832845454,13.64845,2458.9,2458.5,4.0675]
[1724832845961,13.64839,2458.9,2458.4,0.55]
[1724832846254,13.64839,2458.9,2458.4,8.13514]
[1724832846458,13.64839,2458.9,2458.4,4.06754]
[1724832846664,17.71535,2458.9,2458.4,4.06754]
[1724832846848,8.13449,2458.7,2458.2,4.0679]
[1724832847172,4.0672,2458.7,2458.2,4.0679]
[1724832847327,4.0672,2458.7,2458.1,0.4092]
[1724832847684,4.0672,2458.7,2458.3,4.06784]
[1724832847835,19.486995,2458.9,2458.3,8.13568]
[1724832848037,9.5815,2458.9,2458.5,4.0675]
[1724832848238,9.5815,2458.9,2458.4,4.06768]
[1724832848566,9.5815,2458.9,2458.4,4.0676]
[1724832848771,4.06704,2458.8,2458.4,4.0676]
[1724832849227,9.5815,2458.9,2458.4,4.06757]
[1724832849726,9.5815,2458.9,2458.6,4.06727]
[1724832850457,9.5815,2458.9,2458.7,4.06702]
[1724832851174,9.5815,2458.9,2458.8,4.06702]
[1724832851325,9.1666,2459.3,2459.0,4.06667]
[1724832851671,9.1666,2459.3,2458.9,4.06684]
[1724832852172,13.23279,2459.3,2458.9,4.06684]
[1724832852333,13.23279,2459.3,2458.9,8.13362]
[1724832852334,9.1666,2459.3,2458.9,8.13362]
[1724832852523,9.1666,2459.3,2458.9,8.13354]
[1724832852726,9.1666,2459.3,2459.1,4.06651]
[1724832853037,13.27004,2459.7,2459.1,4.06651]
[1724832853233,9.2045,2459.7,2459.3,4.06612]
[1724832853746,9.2045,2459.7,2459.4,4.06591]
[1724832853951,4.06362,2460.9,2460.0,4.06504]
[1724832854192,9.9711,2461.7,2461.2,4.06305]
[1724832854374,9.9711,2461.7,2460.7,4.0638]
[1724832854375,4.06256,2461.5,2460.7,4.0638]
[1724832854593,5.53398654,2462.1,2459.8,12.21932]
[1724832854594,9.9711,2461.4,2460.3,4.06444]
[1724832854906,4.06336,2461.1,2460.5,4.06406]
[1724832855103,4.06341,2461.0,2460.5,4.06406]
[1724832855402,4.06294,2461.3,2460.6,0.08128094]
[1724832855608,4.06322,2461.1,2460.6,0.63128094]
[1724832855789,4.06294,2461.3,2460.6,0.55]
[1724832855976,4.06365,2460.9,2460.3,4.47359]
[1724832856177,4.0642,2460.6,2460.0,4.06503]
[1724832856398,4.06389,2460.7,2459.6,5.53398654]
[1724832856399,13.33464,2460.8,2460.2,4.06458]
[1724832856571,17.39847,2460.8,2460.2,4.06458]
[1724832856905,8.12821,2460.6,2460.0,4.06495]
[1724832857109,11.010747,2460.8,2459.7,4.06549]
[1724832857110,15.074527,2460.8,2459.7,4.06549]
[1724832857266,9.869,2460.2,2459.9,4.06518]
[1724832857468,9.869,2460.6,2460.1,4.06486]
[1724832857674,9.869,2460.6,2460.2,4.06456]
[1724832857975,9.869,2460.6,2460.1,4.06486]
[1724832858179,9.869,2460.6,2460.1,4.06478]
[1724832858379,9.869,2461.0,2460.4,4.06437]
[1724832858699,9.869,2461.0,2460.6,4.06396]
[1724832859038,4.06277,2461.4,2460.8,4.06357]
[1724832859210,9.1216,2461.7,2460.9,4.06354]
[1724832859211,4.06272,2461.5,2460.9,4.06354]
[1724832859372,4.06272,2461.5,2461.0,4.06328]
[1724832859572,13.18397,2461.7,2461.0,4.06328]
[1724832859767,13.18397,2461.7,2461.0,4.14454395]
[1724832860074,9.1216,2461.7,2460.8,4.06363]
[1724832860307,9.4022,2461.1,2460.7,3.55]
[1724832860478,4.06282,2461.4,2460.8,4.06362]
[1724832860679,13.46502,2461.4,2460.8,4.06362]
[1724832860881,9.4022,2461.4,2461.1,4.06321]
[1724832861107,9.4022,2461.4,2461.2,4.06294]
[1724832861312,9.1661,2461.7,2461.0,4.06325]
[1724832861697,9.1661,2461.7,2461.2,4.06304]
[1724832861893,9.1661,2461.7,2461.2,8.12599]
[1724832862103,9.1661,2461.7,2461.3,4.06286]
[1724832862632,4.06226,2461.7,2461.1,4.47231]
[1724832862919,4.06204,2461.9,2461.3,4.06277]
[1724832863124,8.12405,2461.9,2461.3,4.06277]
[1724832863349,9.1413,2462.0,2461.5,4.06246]
[1724832863490,13.20309,2462.0,2461.4,4.06261]
[1724832863830,4.06284,2461.4,2460.8,4.47286]
[1724832863998,4.06284,2461.4,2460.8,0.4092]
[1724832863999,4.063,2461.3,2460.8,0.4092]
[1724832864201,4.06284,2461.4,2460.8,4.55407621]
[1724832864396,4.06284,2461.4,2460.8,0.49046621]
[1724832864596,4.06307,2461.2,2460.8,0.4092]
[1724832864800,4.06332,2461.1,2460.7,0.4092]
[1724832865114,4.06303,2461.3,2460.7,0.4092]
[1724832865326,4.06307,2461.2,2460.7,0.4092]
[1724832865526,4.06303,2461.3,2460.7,0.49046949]
[1724832865904,6.0016894,2461.3,2460.7,0.4092]
[1724832866106,9.1184,2461.2,2460.7,0.4092]
[1724832866546,4.06337,2461.1,2460.4,4.06428]
[1724832867042,5.382239,2461.9,2460.0,3.6841]
[1724832867043,9.9182,2460.6,2460.0,4.0649]
[1724832867244,9.9182,2460.6,2459.7,4.0655]
[1724832867245,9.9182,2460.6,2460.1,0.08128638]
[1724832867399,4.06384,2460.8,2459.7,4.0655]
[1724832867400,4.06384,2460.8,2460.2,8.12922]
[1724832867600,9.442,2460.9,2460.4,4.06422]
[1724832868245,4.06315,2461.2,2460.5,4.14548731]
[1724832868535,9.3233,2461.3,2460.6,4.06404]
[1724832868742,9.3233,2461.3,2460.7,4.69513524]
[1724832868946,4.06323,2461.1,2460.7,0.55]
[1724832869113,4.06323,2461.1,2460.6,0.55]
[1724832869301,4.06323,2461.1,2460.5,4.06411]
[1724832869506,9.3233,2461.3,2460.4,4.06436]
[1724832869507,4.469803,2461.0,2460.4,4.06436]
[1724832869804,4.06412,2460.6,2460.2,0.4092]
[1724832870011,4.06399,2460.7,2460.2,0.4092]
[1724832870199,4.06399,2460.7,2459.9,4.06512]
[1724832870398,9.6617,2460.8,2459.9,4.06505]
[1724832870647,9.6617,2460.8,2459.8,0.4092]
[1724832870814,17.79121,2460.2,2459.5,8.13147]
[1724832870996,17.79121,2460.2,2459.5,4.06572]
[1724832870997,13.72641,2460.2,2459.5,4.06572]
[1724832871201,13.7265,2460.2,2459.4,4.06598]
[1724832871400,13.7265,2460.2,2459.5,4.06572]
[1724832871401,17.79127,2460.2,2459.5,4.06572]
[1724832871634,13.72643,2460.2,2459.6,4.14688765]
[1724832871838,13.72643,2460.2,2459.5,4.47492]
[1724832871999,17.79132,2460.2,2459.6,0.08130739]
[1724832872206,4.06487,2460.1,2459.6,4.14698739]
[1724832872430,4.06504,2460.0,2459.5,4.4749]
[1724832872629,4.06504,2460.0,2459.5,0.4092]
[1724832872858,4.06504,2460.0,2459.3,4.47528]
[1724832873070,4.06545,2459.8,2459.3,4.47528]
[1724832873219,4.06512,2460.0,2459.5,4.06585]
[1724832873424,4.06512,2460.0,2459.5,8.1317]
[1724832873648,13.72646,2460.2,2459.6,4.06569]
[1724832873868,4.06505,2460.0,2459.5,4.06585]
[1724832874165,4.06513,2460.0,2459.5,0.4092]
[1724832874466,4.06513,2460.0,2459.3,8.13215]
[1724832874467,4.06539,2459.8,2459.3,4.47524]
[1724832874672,4.06539,2459.8,2459.4,0.55]
[1724832874837,4.06539,2459.8,2459.3,0.49051048]
[1724832875020,4.06571,2459.6,2459.3,0.4092]
[1724832875434,4.06571,2459.6,2459.0,4.47587]
[1724832875662,9.9513,2459.5,2459.2,4.06635]
[1724832875860,9.9513,2459.5,2459.1,4.06641]
[1724832876063,7.44,2460.1,2459.2,4.14767305]
[1724832876374,7.44,2460.1,2459.1,4.06644]
[1724832876375,4.0657,2459.6,2459.1,4.06644]
[1724832876572,4.0657,2459.6,2459.1,4.14778203]
[1724832876868,9.953,2459.7,2459.2,4.06634]
[1724832877068,4.06596,2459.5,2458.8,4.47606]
[1724832877228,9.953,2459.7,2458.9,0.08132206]
[1724832877229,4.06607,2459.4,2458.9,0.08132206]
[1724832877427,4.06689,2458.9,2458.4,4.47672]
[1724832877632,4.06689,2458.9,2458.4,4.06752]
[1724832877853,9.3665,2459.3,2458.4,4.06752]
[1724832877854,4.06652,2459.1,2458.6,4.06734]
[1724832878053,4.0667,2459.0,2458.5,0.08133929]
[1724832878236,4.0667,2459.0,2458.5,4.14878929]
[1724832878669,4.0667,2459.0,2458.5,0.08133929]
[1724832878965,4.06704,2458.8,2458.2,4.06786]
[1724832879167,4.06704,2458.8,2458.3,4.06776]
[1724832879338,4.06704,2458.8,2458.2,4.47706]
[1724832879541,4.06704,2458.8,2458.4,0.08134095]
[1724832879952,4.06735,2458.6,2458.2,0.4092]
[1724832880168,8.13486,2458.6,2458.3,0.4092]
[1724832880369,4.06756,2458.5,2458.3,0.4092]
[1724832880665,9.3665,2458.7,2458.3,0.4092]
[1724832880839,4.06737,2458.6,2458.3,0.4092]
[1724832881039,4.06737,2458.6,2458.4,0.4092]
[1724832881231,13.43371,2458.7,2458.1,0.08135146]
[1724832881429,4.06786,2458.3,2457.6,4.06893]
[1724832881649,8.13584,2458.3,2457.7,4.06875]
[1724832881938,4.06786,2458.3,2457.8,4.06867]
[1724832882428,8.13521,2458.5,2457.8,4.06858]
[1724832882628,4.06771,2458.4,2457.8,4.06857]
[1724832882934,4.06758,2458.5,2457.8,8.13713]
[1724832882935,4.06787,2458.3,2457.8,8.13713]
[1724832883126,4.06771,2458.4,2457.8,8.13714]
[1724832883551,4.06771,2458.4,2457.8,8.13713]
[1724832883775,4.06771,2458.4,2457.8,4.06856]
[1724832883942,4.06771,2458.4,2457.9,4.06849]
[1724832884261,4.06771,2458.4,2457.8,4.06856]
[1724832884425,4.06771,2458.4,2457.8,8.13714]
[1724832884627,4.06789,2458.3,2457.8,4.06856]
[1724832885469,4.06826,2458.1,2457.5,3.4092]
[1724832885758,4.06826,2458.1,2457.6,0.55]
[1724832886140,4.06826,2458.1,2457.5,3.4092]
[1724832886141,4.0687,2457.8,2457.5,0.4092]
[1724832886443,4.0687,2457.8,2457.2,4.0695]
[1724832886444,9.1799,2457.7,2457.3,4.15076155]
[1724832886933,9.1799,2457.7,2457.3,8.22018155]
[1724832887471,9.1799,2457.7,2457.3,4.15076155]
[1724832887625,9.1799,2457.7,2457.3,4.06938]
[1724832888182,13.79294,2458.3,2457.5,8.13808]
[1724832888338,4.06805,2458.2,2457.7,4.06881]
[1724832888846,4.06819,2458.1,2457.6,0.08137144]
[1724832889177,4.06819,2458.1,2457.6,4.15029144]
[1724832889581,8.13648,2458.1,2457.5,8.13809]
[1724832889901,9.2852,2457.9,2457.2,4.47879]
[1724832890066,9.2852,2457.9,2457.4,4.06923]
[1724832890241,13.35382,2457.9,2457.4,4.06923]
[1724832890965,9.2852,2457.9,2457.4,8.13843]
[1724832891171,9.2852,2457.9,2457.6,4.0689]
[1724832891472,13.35372,2457.9,2457.5,4.06905]
[1724832891646,13.35372,2457.9,2457.1,3.4092]
[1724832891647,4.06896,2457.7,2457.1,7.47894]
[1724832891853,4.06896,2457.7,2457.2,4.06958]
[1724832892063,4.06868,2457.8,2457.3,4.06949]
[1724832892650,4.06886,2457.7,2457.2,4.06967]
[1724832893180,4.06904,2457.6,2457.1,4.47903]
[1724832893541,11.027398,2457.9,2457.1,4.47903]
[1724832893542,9.2852,2457.9,2457.3,4.06938]
[1724832893741,4.06884,2457.7,2457.2,4.06966]
[1724832894243,4.06921,2457.5,2457.1,0.4092]
[1724832894465,4.06885,2457.7,2457.2,4.06963]
[1724832894673,4.06877,2457.8,2457.2,4.06963]
[1724832894879,13.35382,2457.9,2457.4,4.06933]
[1724832895075,4.06871,2457.8,2457.3,4.06949]
[1724832895284,4.06896,2457.7,2457.2,4.47883]
[1724832895443,4.0687,2457.8,2457.3,4.0695]
[1724832896186,4.0687,2457.8,2457.0,4.06989]
[1724832896187,1.5096128,2457.8,2457.0,4.06989]
[1724832896343,1.5096128,2457.8,2456.9,0.08139325]
[1724832896344,4.06918,2457.5,2456.9,0.08139325]
[1724832896544,9.393,2457.3,2456.8,11.14045]
[1724832896861,9.393,2457.3,2456.9,4.07014]
[1724832897182,9.393,2457.3,2456.9,4.47814]
[1724832897581,9.393,2457.3,2456.7,4.07039]
[1724832897803,4.06987,2457.1,2456.6,4.07053]
[1724832897945,10.739239,2457.3,2456.4,4.07089]
[1724832898144,9.8441,2456.8,2456.4,4.07089]
[1724832898458,9.8441,2456.8,2456.5,4.07079]
[1724832899682,9.8441,2456.8,2456.6,4.07066]
[1724832900566,9.8441,2456.8,2456.4,4.07089]
[1724832900789,9.8441,2456.8,2456.2,8.55038]
[1724832901094,15.305852,2456.8,2456.2,0.408]
[1724832901243,4.07072,2456.6,2456.0,4.1529934]
[1724832901443,11.235512,2456.8,2456.0,4.1529934]
[1724832901444,9.8441,2456.8,2456.0,0.0814234]
[1724832901689,7.44,2456.9,2456.7,4.0705]
[1724832901851,7.44,2456.9,2456.8,8.14066]
[1724832902157,9.9898,2457.2,2456.2,9.58090713]
[1724832902357,14.05955,2457.2,2456.6,4.07058]
[1724832902558,9.9898,2457.2,2457.1,4.06983]
[1724832902758,9.9898,2457.2,2456.7,0.63140391]
[1724832902759,9.9898,2457.2,2457.0,4.07]
[1724832903265,9.9898,2457.2,2456.9,4.07005]
[1724832903462,9.9898,2457.2,2457.0,4.06999]
[1724832903658,9.9898,2457.2,2456.9,8.14007]
[1724832903994,9.9898,2457.2,2457.0,4.06991]
[1724832904165,14.05957,2457.2,2456.7,4.62033]
[1724832904360,11.395757,2457.2,2456.7,4.07041]
[1724832904769,9.9898,2457.2,2456.8,4.07032]
[1724832905063,9.9898,2457.2,2456.9,4.07014]
[1724832905764,9.8819,2457.5,2457.2,4.06957]
[1724832905967,9.8819,2457.5,2457.2,8.13916]
[1724832906480,9.8819,2457.5,2457.2,4.06957]
[1724832906814,16.8436,2457.9,2457.6,4.06888]
[1724832906953,9.4036,2457.9,2457.6,4.06888]
[1724832907155,9.4036,2457.9,2457.6,4.069]
[1724832907475,9.4036,2457.9,2457.5,4.06917]
[1724832907679,13.47213,2457.9,2457.3,7.06934]
[1724832907861,13.47213,2457.9,2457.4,4.61925]
[1724832908072,13.47213,2457.9,2457.6,4.06898]
[1724832908073,9.4036,2457.9,2457.6,4.06898]
[1724832908459,9.4036,2457.9,2457.5,4.06916]
[1724832908660,4.06885,2457.7,2457.4,0.55]
[1724832908896,9.4036,2457.9,2457.4,4.06923]
[1724832909060,9.4036,2457.9,2457.6,4.069]
[1724832909252,9.4036,2457.9,2457.4,4.0692]
[1724832909457,9.4036,2457.9,2457.6,4.06898]
[1724832909862,9.4036,2457.9,2457.7,4.06873]
[1724832910263,9.5128,2458.2,2457.9,4.0685]
[1724832910575,9.5128,2458.2,2458.0,4.06825]
[1724832910758,9.5128,2458.2,2457.7,4.0687]
[1724832910957,9.5128,2458.2,2457.8,0.55]
[1724832911378,9.5128,2458.2,2457.9,4.06843]
[1724832911583,9.5128,2458.2,2457.9,8.13679]
[1724832911885,9.5128,2458.5,2457.8,0.55]
[1724832912087,9.5128,2458.5,2458.3,4.06772]
[1724832912408,9.5128,2458.8,2458.2,4.06793]
[1724832912706,9.5128,2458.1,2457.7,4.61875]
[1724832912855,4.0667,2459.0,2457.2,4.06952]
[1724832912856,4.06868,2457.8,2457.2,4.06952]
[1724832913062,8.13726,2457.9,2457.3,4.70660481]
[1724832913362,9.5128,2457.8,2457.4,0.63722533]
[1724832913558,9.5128,2457.8,2457.4,0.0813889]
[1724832913788,9.5128,2457.8,2457.5,4.70635607]
[1724832914172,9.5128,2457.8,2457.4,0.0813889]
[1724832914173,9.5128,2457.8,2457.3,4.06934]
[1724832914325,9.5128,2457.8,2457.7,4.06884]
[1724832914476,4.06797,2458.3,2457.7,4.06884]
[1724832914477,9.0586,2458.1,2457.7,4.06884]
[1724832914676,9.0586,2458.1,2457.6,4.0689]
[1724832914919,9.0586,2458.1,2457.4,7.06922]
[1724832914920,13.12679,2458.1,2457.4,7.06922]
[1724832915122,9.0586,2458.1,2457.5,0.63137982]
[1724832915277,9.0586,2458.1,2457.6,4.06887]
[1724832915621,9.0586,2458.1,2457.5,0.63137982]
[1724832915622,4.06843,2458.0,2457.5,4.61915]
[1724832916122,9.0008,2457.7,2457.2,8.13913]
[1724832916328,4.0691,2457.6,2457.3,0.63725815]
[1724832916492,4.0691,2457.6,2457.2,3.0]
[1724832916698,9.0008,2457.7,2457.3,4.06941]
[1724832916997,5.50960713,2458.7,2457.0,3.0]
[1724832916998,9.0008,2458.1,2457.6,4.06899]
[1724832917205,4.06852,2457.9,2457.4,4.0693]
[1724832917409,4.06876,2457.8,2457.2,4.06955]
[1724832917598,17.41921,2457.7,2457.3,3.63722886]
[1724832917796,13.35023,2457.7,2457.3,3.0]
[1724832918408,4.06916,2457.6,2457.3,3.0]
[1724832918612,4.06916,2457.6,2457.1,3.0]
[1724832918613,8.1383,2457.6,2457.1,3.0]
[1724832918842,4.06912,2457.6,2457.1,3.0]
[1724832918993,8.13827,2457.6,2457.1,7.06973]
[1724832919192,4.06924,2457.5,2457.1,3.0]
[1724832919459,4.06912,2457.6,2457.1,3.0]
[1724832919998,4.06917,2457.5,2457.1,3.0]
[1724832920399,4.06912,2457.6,2457.1,7.06972]
[1724832920845,4.06912,2457.6,2457.2,4.06966]
[1724832921036,9.2813,2457.7,2457.2,8.13932]
[1724832921416,9.2813,2457.7,2457.2,4.06954]
[1724832921751,9.2813,2457.7,2457.1,3.0]
[1724832921752,4.06914,2457.6,2457.1,7.06983]
[1724832921930,4.06928,2457.5,2457.1,3.0]
[1724832922100,4.06936,2457.4,2457.0,4.06989]
[1724832922295,4.06936,2457.4,2457.1,0.55]
[1724832922500,4.06982,2457.2,2456.8,0.408]
[1724832922700,9.0818,2457.1,2456.8,4.07032]
[1724832922936,9.0818,2457.5,2456.9,0.08140531]
[1724832923145,9.0818,2457.5,2457.0,4.06987]
[1724832923442,7.44,2457.6,2457.5,4.06917]
[1724832923649,9.0818,2457.8,2457.4,4.06933]
[1724832923939,9.0818,2457.8,2457.5,4.06916]
[1724832924242,16.5218,2458.1,2457.6,4.06887]
[1724832924441,9.0818,2458.1,2457.7,4.70008036]
[1724832924626,9.0818,2458.1,2457.8,4.06867]
[1724832924835,9.0818,2458.1,2457.9,0.55]
[1724832925148,9.0818,2458.1,2457.9,4.61848]
[1724832925303,9.0818,2458.1,2458.0,4.06834]
[1724832925849,9.0818,2458.1,2457.9,0.55]
[1724832926157,9.0818,2458.1,2457.7,4.06871]
[1724832926158,13.14998,2458.1,2457.8,3.55]
[1724832926321,13.14998,2458.1,2457.5,8.1381]
[1724832926322,18.940117,2458.1,2457.5,8.1381]
[1724832926644,14.871777,2458.1,2457.6,7.61897]
[1724832926847,13.14998,2458.1,2457.6,7.61897]
[1724832927033,9.0818,2458.1,2457.7,4.06881]
[1724832927510,9.0818,2458.1,2457.9,4.06843]
[1724832927842,9.0818,2458.1,2458.0,0.55]
[1724832928321,9.0626,2458.5,2458.1,4.06809]
[1724832928650,9.0626,2458.5,2458.2,0.55]
[1724832929218,9.0626,2458.5,2458.2,4.61799]
[1724832929405,13.06938,2458.8,2458.3,4.06771]
[1724832929525,13.06938,2458.8,2458.4,4.61767]
[1724832929724,13.06938,2458.8,2458.4,4.06767]
[1724832929921,9.0023,2458.8,2458.4,4.06767]
[1724832930360,9.0023,2458.8,2458.5,0.55]
[1724832930667,4.06544,2459.8,2458.5,0.55]
[1724832930668,9.7518,2459.3,2458.6,0.08134745]
[1724832930866,19.72,2459.7,2458.6,0.08134745]
[1724832930867,9.8451,2459.6,2459.2,4.06636]
[1724832931029,9.8451,2459.6,2459.3,4.61617]
[1724832931231,9.8451,2459.6,2459.3,4.61607]
[1724832931463,9.8451,2459.6,2459.4,4.06601]
[1724832931673,9.8451,2459.9,2459.3,0.55]
[1724832931971,9.8451,2459.9,2459.5,4.06576]
[1724832932173,9.8451,2459.9,2459.6,0.55]
[1724832932338,9.8451,2459.9,2459.6,4.69696414]
[1724832932746,9.8451,2459.9,2459.8,4.06537]
[1724832933066,9.8451,2459.9,2459.8,4.61537]
[1724832933236,9.8451,2459.9,2459.4,4.0659]
[1724832933564,9.8451,2459.9,2459.5,3.55]
[1724832933776,9.8451,2459.9,2459.6,4.06566]
[1724832933955,9.8451,2459.9,2459.7,0.55]
[1724832934274,9.6208,2460.3,2459.7,4.6155]
[1724832935167,9.6208,2460.3,2459.7,4.6154]
[1724832935530,4.06441,2460.4,2459.7,4.6154]
[1724832935531,9.0557,2460.7,2460.0,4.06488]
[1724832935731,9.0557,2460.7,2460.1,0.55]
[1724832936035,4.06416,2460.6,2460.1,0.55]
[1724832936462,9.0557,2460.7,2460.1,4.61483]
[1724832936633,9.0557,2460.7,2460.3,4.06439]
[1724832936836,23.84124,2462.3,2460.1,0.63129041]
[1724832936837,9.0607,2461.6,2460.6,5.50960713]
[1724832937151,3.6317281,2462.6,2461.5,0.408]
[1724832937152,9.0607,2462.0,2461.5,0.408]
[1724832937363,9.0607,2462.0,2461.1,4.06321]
[1724832937532,4.06209,2461.8,2461.2,0.55]
[1724832937728,4.06191,2461.9,2461.2,0.55]
[1724832937935,4.06191,2461.9,2461.3,0.08124768]
[1724832938169,4.06191,2461.9,2461.4,0.55]
[1724832939151,13.12245,2462.0,2461.5,0.08124768]
[1724832939477,9.0607,2462.0,2461.6,0.55]
[1724832939684,13.41971,2462.5,2461.7,0.08123742]
[1724832939988,0.1216114,2462.6,2462.2,4.06137]
[1724832940132,0.1216114,2462.6,2462.3,0.63120641]
[1724832940576,0.1216114,2462.6,2462.3,3.63120641]
[1724832940772,0.1216114,2462.6,2462.3,3.63121264]
[1724832941067,0.1216114,2462.6,2462.5,4.06091]
[1724832941270,0.1216114,2462.6,2462.5,7.69211349]
[1724832941432,0.1216114,2462.6,2462.5,11.75302349]
[1724832941639,4.057,2464.9,2463.0,4.05993]
[1724832941640,9.2831,2463.9,2463.0,4.05993]
[1724832941833,4.05877,2463.8,2463.1,7.69106322]
[1724832942180,4.05978,2463.2,2462.4,4.06091]
[1724832942337,9.2831,2463.3,2462.1,22.71093044]
[1724832942338,4.05993,2463.1,2462.5,3.55]
[1724832942533,4.05993,2463.1,2462.1,18.64951044]
[1724832942534,4.06026,2462.9,2462.4,3.0]
[1724832942789,4.06053,2462.8,2462.2,3.6312103]
[1724832942940,4.06026,2462.9,2462.3,0.0812103]
[1724832943140,4.06026,2462.9,2462.2,3.55]
[1724832943141,4.06108,2462.4,2462.2,3.0]
[1724832943444,4.06108,2462.4,2461.7,4.06221]
[1724832943842,9.2831,2462.5,2461.8,4.06205]
[1724832944187,4.06153,2462.2,2461.4,4.06271]
[1724832944387,4.06205,2461.9,2461.2,4.06298]
[1724832944585,4.06207,2461.8,2461.0,4.06333]
[1724832944799,13.07007,2461.8,2461.1,4.06319]
[1724832944951,13.07007,2461.8,2461.2,4.14427569]
[1724832944952,9.008,2461.8,2461.2,4.14427569]
[1724832945258,4.06193,2461.9,2461.2,4.14417569]
[1724832945445,4.06193,2461.9,2461.0,4.06337]
[1724832945649,4.06226,2461.7,2461.0,4.06337]
[1724832946061,4.06193,2461.9,2461.2,4.06303]
[1724832946280,13.06963,2462.1,2460.7,8.154]
[1724832946281,13.06963,2462.1,2461.5,4.06254]
[1724832946483,9.008,2462.5,2461.8,4.06194]
[1724832946694,9.008,2462.5,2461.9,0.63122453]
[1724832947012,9.008,2462.5,2461.3,5.7767655]
[1724832947013,4.06177,2462.0,2461.3,4.06277]
[1724832947152,9.008,2461.8,2461.1,4.06307]
[1724832947491,9.9856,2462.2,2461.2,3.08124743]
[1724832947673,9.9856,2462.2,2461.2,4.063]
[1724832947881,4.06169,2462.1,2461.4,4.06271]
[1724832948106,9.9856,2462.2,2461.3,3.0]
[1724832948306,9.4994,2461.6,2460.7,8.154]
[1724832948505,9.4994,2461.6,2460.8,0.08126534]
[1724832948712,8.12537,2461.5,2460.8,4.14482534]
[1724832948927,9.6911,2462.0,2460.9,0.08125176]
[1724832949092,9.6911,2462.0,2460.9,4.06351]
[1724832949093,4.06261,2461.5,2460.9,4.06351]
[1724832949427,4.06261,2461.5,2460.8,4.06369]
[1724832949428,9.6911,2461.4,2460.8,4.06369]
[1724832949727,9.6911,2461.4,2460.7,12.21777]
[1724832949728,4.06306,2461.2,2460.5,4.0641]
[1724832949940,9.6911,2461.4,2460.7,4.47186]
[1724832950081,9.6911,2461.4,2461.1,4.06306]
[1724832950282,9.1068,2461.8,2461.2,0.08125575]
[1724832950522,9.1068,2461.8,2461.3,4.61288]
[1724832950719,9.1068,2461.8,2461.4,4.06271]
[1724832950929,9.6445,2462.2,2461.6,4.06224]
[1724832951130,9.6445,2462.2,2461.8,4.06205]
[1724832951421,9.6445,2462.7,2462.2,4.06131]
[1724832951631,9.6445,2462.7,2462.2,4.06129]
[1724832951787,13.7052,2462.7,2462.0,4.14284303]
[1724832951986,13.7052,2462.7,2462.1,0.55]
[1724832952181,13.7052,2462.7,2462.1,4.61154]
[1724832952382,9.6445,2462.7,2462.2,4.06129]
[1724832952625,13.70514,2462.7,2462.1,0.63122313]
[1724832952823,4.06135,2462.3,2461.7,0.408]
[1724832953027,4.06096,2462.5,2461.8,5.01995]
[1724832953523,4.06199,2461.9,2461.4,4.06264]
[1724832953826,9.3521,2462.0,2461.6,4.0623]
[1724832954026,9.3521,2462.0,2461.4,4.06259]
[1724832954027,13.41386,2462.0,2461.4,4.06259]
[1724832954320,13.41386,2462.0,2461.5,4.06256]
[1724832954527,9.3521,2462.0,2461.6,4.06236]
[1724832954711,4.06217,2461.8,2461.2,4.06297]
[1724832954895,4.06217,2461.8,2461.0,4.06332]
[1724832955088,9.3521,2462.0,2460.9,4.06353]
[1724832955289,4.06224,2461.7,2461.1,4.06322]
[1724832955632,4.06199,2461.9,2461.4,4.06272]
[1724832955837,9.3521,2462.0,2461.1,8.12623]
[1724832956039,9.3521,2462.0,2461.3,4.06275]
[1724832956335,9.8367455,2463.1,2461.9,4.0618]
[1724832956336,13.30303,2462.5,2461.9,4.0618]
[1724832956510,9.2421,2462.5,2461.4,3.408]
[1724832956734,4.0615,2462.2,2461.6,4.06227]
[1724832956907,0.1216114,2465.0,2462.7,1.16004213]
[1724832957238,0.1216114,2465.0,2464.7,5.7767655]
[1724832957433,0.1216114,2465.0,2464.2,10.2427155]
[1724832957743,0.1216114,2465.0,2464.4,4.05778]
[1724832957887,0.1216114,2465.0,2464.3,0.48915174]
[1724832958236,9.5519,2464.8,2464.3,0.408]
[1724832958389,4.05746,2464.6,2463.8,9.8353955]
[1724832958589,5.418187,2464.7,2463.9,3.408]
[1724832959089,5.418187,2464.7,2463.9,7.46657]
[1724832959543,4.05746,2464.6,2463.9,7.46657]
[1724832959748,13.72304,2464.4,2463.5,4.46721]
[1724832959942,9.6651,2464.4,2463.6,3.55]
[1724832960182,9.6651,2464.4,2464.1,4.05816]
[1724832960485,9.6651,2464.4,2464.3,4.05794]
[1724832960687,10.63161,2464.4,2463.6,0.408]
[1724832960899,10.63161,2464.4,2463.4,4.0593]
[1724832960900,9.4261,2464.0,2463.4,4.0593]
[1724832961101,1.348439,2463.9,2463.4,4.0593]
[1724832961305,9.4261,2464.0,2463.8,4.05861]
[1724832961652,7.91921347,2464.0,2463.8,4.05861]
[1724832961851,7.91921347,2464.0,2463.4,9.8361055]
[1724832962095,0.79192135,2463.9,2463.5,4.05918]
[1724832962278,7.91921347,2464.0,2463.6,4.05904]
[1724832962477,7.91921347,2464.0,2463.6,4.05896]
[1724832962994,7.91921347,2464.0,2463.8,4.05863]
[1724832963206,7.91921347,2464.0,2463.6,4.05902]
[1724832963417,7.91921347,2464.0,2463.4,12.8360755]
[1724832963614,7.91921347,2464.0,2463.6,4.05898]